Cogmind - Beta 10.2 @@@ ROGUE MODE // 2021.01.09 @ 23:47:25 Player: CrossedViper Result: Destroyed by G-73 Enforcer with Phase Gun Performance ------------- Evolutions (8) 4000 Regions Visited (29) 5800 Robots Destroyed (505) 2525 Value Destroyed (27091) 27091 Prototype IDs (93) 1860 Alien Tech Used (10) 2000 Bonus (13864) 13864 TOTAL SCORE: 57140 Bonus ------- Triggered High Security 500 High Alert Combat Kills 3832 Follower Combat Kills 914 Network Hubs Disabled 400 Aligned with FarCom 300 Destroyed Z-Imprinter 1000 Exposed GOLEM Chamber 500 Met Zhirov 300 Used Core Reset Matrix 3000 Scanned by Researcher 1000 Pursued by Intercept 500 Acquired SGEMP 2000 Friendly Fire -382 Cogmind --------- Core Integrity 0/1450 Matter 248/300 Energy 1100/1100 System Corruption 32% Temperature Cool (9) Movement Core (1650) Ox32 Location -2/Section 7 Parts ------- > --- POWER (3) -------- (None) > --- PROPULSION (4) --- (None) > --- UTILITY (14) ----- High-capacity Storage Unit High-capacity Storage Unit High-capacity Storage Unit Experimental Energy Well Advanced Targeting Computer Experimental Targeting Computer > --- WEAPON (3) ------- (None) > --- INVENTORY (28) --- Advanced Armor Integrity Analyzer Quantum Capacitor Heavy Regenerative Plating Heavy Regenerative Plating Experimental Hacking Suite Molecular Deconstructor SGEMP Prototype Peak State ------------ > --- POWER ------------ Light Quantum Reactor Vortex Chain Reactor > --- PROPULSION ------- High-density Centrium Heavy Treads High-density Centrium Heavy Treads > --- UTILITY ---------- Coolant Network High-capacity Storage Unit High-capacity Storage Unit High-capacity Storage Unit Assembled Combat Suite Experimental Targeting Computer Advanced Armor Integrity Analyzer Improved Transmission Jammer Centrium Heavy Armor Plating Experimental Focal Shield Thermal Barrier EM Dispersion Field > --- WEAPON ----------- Enhanced Nova Cannon Railgun Improved KE Penetrator > --- INVENTORY -------- Biometal Heavy Treads High-density Centrium Heavy Treads Advanced Power Amplifier Advanced Coolant Injector Experimental Energy Well Matter Compressor Advanced Armor Integrity Analyzer Quantum Capacitor Quantum Capacitor Experimental Weapon Shielding 8R-AWN's Armor/EX Transdimensional Reconstructor Core Reset Matrix Matter Drive Enhanced Nova Cannon Graviton Cannon Enhanced Gamma Bomb Array Hellfire Missile Launcher Molecular Deconstructor SGEMP Prototype [Rating: 213] Favorites ----------- Power Assembled Flux Generator Engine Heavy Ion Engine Power Core Reinforced Fission Core Reactor Assembled Flux Generator Propulsion Light Treads Treads Light Treads Leg Assembled Alloy Leg Wheel Compact Wheel Hover Unit Cooled Gravmag System Utility High-capacity Storage Unit Device GOLEM Unit Storage High-capacity Storage Unit Processor Experimental Targeting Computer Hackware Advanced Hacking Suite Protection Assembled Alloy Armor Artifact Matter Drive Weapon Assembled Focal Cannon Energy Gun Gamma Rifle Energy Cannon Assembled Focal Cannon Ballistic Gun Enhanced Autogun Ballistic Cannon Linear Accelerator Launcher Rocket Launcher Special Weapon Molecular Deconstructor Build | -11 -10 -10 -9 -9 -9 -8 -8 -7 -7 -7 -7 -7 -6 -6 -5 -5 -5 -5 -5 -4 -4 -4 -4 -3 -3 -3 -2 -2 -2 ------- Run | Scr Mat Min Mat Min Exi Min Mat Fac Low Low Zio Dee Pro Fac Fac Ext Cet Arc Hub Fac Upp Upp Zhi Pro Res Tes Res Qua Sec Slots Evolved 16 | . . . 2 . . . 2 2 . . . . . 2 2 . . . . 2 . . . . 2 . 2 . . Power 1 | . . . . . . . . . . . . . . 1 . . . . . . . . . . . . . . . Propulsion 2 | . . . . . . . . . . . . . . . . . . . . 1 . . . . . . 1 . . Utility 12 | . . . 2 . . . 2 1 . . . . . 1 2 . . . . 1 . . . . 2 . 1 . . Weapon 1 | . . . . . . . . 1 . . . . . . . . . . . . . . . . . . . . . Parts Attached 391 | . 8 9 29 2 15 2 11 31 6 2 4 33 2 4 11 4 10 2 1 12 10 3 6 2 8 62 8 42 52 Power 33 | . . 1 4 . . . 1 . . . . 2 1 . . . 2 . . . . . 1 . . 9 2 3 7 Engine 2 | . . 1 1 . . . . . . . . . . . . . . . . . . . . . . . . . . Core 5 | . . . 3 . . . 1 . . . . . . . . . . . . . . . . . . 1 . . . Reactor 26 | . . . . . . . . . . . . 2 1 . . . 2 . . . . . 1 . . 8 2 3 7 Propulsion 52 | . 3 2 3 . 3 . 1 5 1 1 . 3 . 2 . . 1 . 1 4 1 . 4 . 3 4 1 6 3 Treads 39 | . 2 2 3 . 3 . 1 5 1 1 . 2 . . . . 1 . 1 . . . . . 3 4 1 6 3 Leg 9 | . . . . . . . . . . . . 1 . 2 . . . . . 4 1 . 1 . . . . . . Wheel 1 | . 1 . . . . . . . . . . . . . . . . . . . . . . . . . . . . Hover 3 | . . . . . . . . . . . . . . . . . . . . . . . 3 . . . . . . Flight . | . . . . . . . . . . . . . . . . . . . . . . . . . . . . . . Utility 166 | . 4 . 9 . 9 2 5 8 4 . 1 22 . 2 11 2 4 2 . 4 8 3 1 2 5 19 1 19 19 Device 72 | . 1 . 1 . 1 . 3 1 3 . . 8 . 1 6 . 2 1 . 1 3 3 1 2 2 9 . 14 9 Storage 27 | . 3 . 4 . 4 . 1 2 . . . 3 . . . . . . . 2 3 . . . . 2 . 1 2 Processor 14 | . . . 1 . 2 . . 1 1 . . . . . 2 . . . . . 1 . . . 1 4 . . 1 Hackware 3 | . . . . . . . . . . . . . . . . . . . . . . . . . 2 . 1 . . Protection 47 | . . . 3 . 2 2 1 4 . . 1 11 . 1 3 2 2 1 . 1 1 . . . . 4 . 2 6 Artifact 3 | . . . . . . . . . . . . . . . . . . . . . . . . . . . . 2 1 Weapon 140 | . 1 6 13 2 3 . 4 18 1 1 3 6 1 . . 2 3 . . 4 1 . . . . 30 4 14 23 Energy Gun 30 | . . 3 4 . . . . . . . . . . . . . 1 . . . . . . . . 17 1 4 . Energy Cannon 20 | . . . 3 . 1 . 3 1 . . . 1 . . . . . . . 1 . . . . . 2 . 3 5 Ballistic Gun 54 | . 1 2 2 1 2 . . 12 1 1 2 5 . . . . 2 . . 3 1 . . . . 6 1 5 7 Ballistic Cannon 8 | . . . . . . . . . . . . . . . . 1 . . . . . . . . . 2 1 1 3 Launcher 26 | . . 1 4 1 . . 1 5 . . 1 . 1 . . 1 . . . . . . . . . 2 1 1 7 Special Weapon 2 | . . . . . . . . . . . . . . . . . . . . . . . . . . 1 . . 1 Impact Weapon . | . . . . . . . . . . . . . . . . . . . . . . . . . . . . . . Slashing Weapon . | . . . . . . . . . . . . . . . . . . . . . . . . . . . . . . Piercing Weapon . | . . . . . . . . . . . . . . . . . . . . . . . . . . . . . . Special Melee Weapon . | . . . . . . . . . . . . . . . . . . . . . . . . . . . . . . Unidentified Prototypes 57 | . . . 3 . . . 3 3 . . 3 5 . . . . 3 . . 1 . 1 3 . . 10 2 15 5 Parts Lost 154 | . . 5 2 . 5 . 1 4 1 . . 14 1 3 . 5 5 . 2 21 2 . . . 4 32 . 10 37 Power 22 | . . . . . . . . . . . . 2 1 . . . 2 . . 1 . . . . . 5 . 4 7 Propulsion 15 | . . 2 . . 2 . . . . . . 2 . . . . . . 1 2 . . . . . 2 . 1 3 Utility 51 | . . . 1 . 2 . . 1 . . . 5 . . . 3 . . . 12 1 . . . 3 8 . 2 13 Weapon 66 | . . 3 1 . 1 . 1 3 1 . . 5 . 3 . 2 3 . 1 6 1 . . . 1 17 . 3 14 Highest Loss Streak 12 | . . 2 1 . 4 . 1 3 1 . . 3 1 2 . 4 2 . 1 7 5 . . . 2 8 . 4 12 Average Slot Usage (%) 90 | . 97 99 99 100 99 100 99 99 99 100 95 91 91 84 92 93 86 81 82 81 86 88 84 89 88 80 90 88 72 Engine 1 | . 14 14 1 11 11 11 3 . . . . . . . . . . . . . . . . . . . . . . Core 2 | . . . 9 . . . 5 7 7 7 7 4 . . . . . . . . . . . . . . . . . Reactor 3 | . . . . . . . . . . . . . 6 6 5 5 5 5 5 4 5 5 8 10 8 8 12 10 7 Treads 9 | . 23 28 21 22 22 22 18 15 15 15 15 9 . . . . 1 5 5 1 . . . . 2 5 8 7 8 Leg 4 | . . . . . . . . . . . . 4 15 13 11 11 8 . . 11 14 15 10 15 8 . . . . Device 11 | . 6 . . . . . 9 7 14 15 10 10 7 8 11 7 20 19 17 19 16 14 15 14 17 17 16 23 18 Storage 22 | . 20 28 30 33 29 33 26 23 23 23 23 22 30 26 23 23 23 23 23 20 19 20 20 20 18 16 12 12 14 Processor 7 | . . . 10 11 12 5 . 7 15 15 11 7 7 6 10 10 . . . . 2 5 5 5 7 9 16 15 7 Protection 5 | . . . 2 . . 5 18 14 . . 3 7 . 3 9 14 6 8 11 7 9 10 10 10 6 1 4 . 4 Energy Gun 2 | . 20 2 12 9 . . . . . . . . . . . . 1 5 4 . . . . . . 3 . 1 . Energy Cannon 6 | . . . 7 . . 11 15 3 . . . 5 15 16 17 13 13 3 5 9 10 15 15 15 13 4 . 1 3 Ballistic Gun 7 | . 7 25 1 1 12 11 . 15 20 23 22 15 2 . . . 1 6 5 4 4 . . . . 2 5 6 6 Launcher 1 | . . . . 11 9 . 2 2 2 . . . 4 2 . 1 . . . . . . . . . . 3 . . Naked Turns . | . . . . . . . . . . . . . . . . . . . . . . . . . . . . . . Heaviest Build 228 | 13 57 60 79 80 96 103 121 139 129 128 156 156 145 191 205 206 192 179 189 191 196 196 214 214 216 209 179 210 228 Greatest Support 180 | 20 40 40 40 40 40 40 40 40 40 40 40 60 60 60 60 60 90 90 80 95 105 85 85 85 108 108 140 180 180 Greatest Overweight (x) 12 | . 1 1 3 1 2 2 3 3 3 3 3 6 2 6 6 3 2 2 2 5 3 2 12 2 2 4 1 2 2 Average Overweight (x) 1 | . . 1 1 1 1 2 2 2 3 3 3 2 2 3 3 2 1 1 2 2 1 2 2 2 1 1 1 . . Largest Inventory Capacity 36 | . 18 18 24 24 26 26 26 28 28 28 28 28 28 28 28 28 28 28 28 28 28 28 28 28 28 36 28 28 28 Average Capacity 26 | . 10 18 22 24 22 26 25 26 28 28 28 26 28 28 28 28 28 28 28 27 26 28 28 28 28 28 28 28 28 Most Carried 28 | . 15 15 24 24 26 26 26 27 28 28 28 28 28 28 28 28 28 28 27 28 25 23 27 28 28 28 28 28 28 Average Carried 24 | . 8 13 21 24 21 25 25 25 27 27 26 24 27 27 25 27 26 27 26 26 19 21 23 27 27 25 26 27 23 Final Capacity 28 | 6 18 18 24 24 26 26 26 28 28 28 28 28 28 28 28 28 28 28 28 28 28 28 28 28 28 28 28 28 28 Final Carried 28 | 6 15 15 24 24 26 26 25 27 28 28 28 28 27 27 28 28 27 27 27 25 21 22 27 28 28 28 28 28 12 Class Distribution -------------------- 25% | Hauler-Mutant 21% | Hauler-Golem 12% | Scavenger-Mutant 9% | Scavenger-Gunner 7% | Mutant 5% | Generator-Golem 4% | Hauler-Tank Dominant Class ---------------- Mutant | -10/Materials Mutant | -10/Mines Hauler-Mutant | -9/Materials Hauler-Mutant | -9/Mines Hauler-Mutant | -9/Exiles Hauler-Mutant | -8/Mines Hauler-Mutant | -8/Materials Hauler-Tank | -7/Factory Scavenger-Skirmisher | -7/Lower Caves Scavenger-Skirmisher | -7/Lower Caves Scavenger-Mutant | -7/Zion Scavenger-Mutant | -7/Deep Caves Hauler-Golem | -6/Proximity Caves Hauler-Golem | -6/Factory Hauler-Tank | -5/Factory Hauler-Mutant | -5/Extension Hauler-Golem | -5/Cetus Hauler-Golem | -5/Archives Hauler-Golem | -5/Hub_04(d) Hauler-Golem | -4/Factory Hauler-Golem | -4/Upper Caves Hauler-Golem | -4/Upper Caves Generator-Golem | -4/Zhirov Generator-Golem | -3/Proximity Caves Generator-Golem | -3/Research Scavenger-Gunner | -3/Testing Hacker-Mutant | -2/Research Scavenger-Gunner | -2/Quarantine Scavenger-Mutant | -2/Section 7 Resources | -11 -10 -10 -9 -9 -9 -8 -8 -7 -7 -7 -7 -7 -6 -6 -5 -5 -5 -5 -5 -4 -4 -4 -4 -3 -3 -3 -2 -2 -2 ----------- Run | Scr Mat Min Mat Min Exi Min Mat Fac Low Low Zio Dee Pro Fac Fac Ext Cet Arc Hub Fac Upp Upp Zhi Pro Res Tes Res Qua Sec Matter Collected 12323 | 200 88 203 504 193 488 157 132 791 203 72 68 490 360 130 90 223 179 95 236 397 220 68 . 211 324 1996 162 1765 2278 Remotely . | . . . . . . . . . . . . . . . . . . . . . . . . . . . . . . Salvage Created 28147 | . 417 354 1341 297 120 148 731 1304 97 131 . 591 534 673 206 1702 1009 363 1308 1604 446 467 . 406 1766 3559 164 2873 5536 Parts 1364 | . 33 19 89 16 12 7 44 67 9 . . 31 26 25 9 73 52 11 73 81 15 15 . 22 78 163 3 165 226 Haulers Intercepted 15 | . 1 . 3 . . . 2 4 . . . . . . . . . . 1 . . . . . 1 . . 1 2 Recyclers Shooed 14 | . 1 . 3 . . . . 1 . 2 . . . . . 2 . . . 4 . . . . . . . 1 . Parts Field Recycled . | . . . . . . . . . . . . . . . . . . . . . . . . . . . . . . Retrieved Matter . | . . . . . . . . . . . . . . . . . . . . . . . . . . . . . . Parts Self-Destructed 86 | . . . . . . . . . 6 . 3 . 24 . . . . . . . 18 13 . 22 . . . . . Prevented . | . . . . . . . . . . . . . . . . . . . . . . . . . . . . . . Kills | -11 -10 -10 -9 -9 -9 -8 -8 -7 -7 -7 -7 -7 -6 -6 -5 -5 -5 -5 -5 -4 -4 -4 -4 -3 -3 -3 -2 -2 -2 ------- Run | Scr Mat Min Mat Min Exi Min Mat Fac Low Low Zio Dee Pro Fac Fac Ext Cet Arc Hub Fac Upp Upp Zhi Pro Res Tes Res Qua Sec Combat Hostiles Destroyed 398 | . 11 7 30 11 1 3 12 20 4 . . 7 11 12 3 21 23 4 13 20 7 5 . 6 23 56 2 27 59 Melee 1 | . . . . . . . . . . . . 1 . . . . . . . . . . . . . . . . . Guns 117 | . 11 6 8 2 . 1 . 14 3 . . 4 . . . . 4 1 5 8 2 . . . . 19 1 18 10 Cannons 162 | . . . 5 . 1 2 10 . . . . 1 6 9 3 11 19 3 8 12 5 4 . 6 22 16 1 8 10 AOE 83 | . . 1 17 9 . . 2 6 1 . . . 5 3 . 9 . . . . . . . . . 9 . 1 20 Classes Destroyed 27 | . 5 1 4 . . 1 1 2 . . . 4 1 1 . . . . . . . 1 . . . 2 . 2 2 Worker 20 | . 2 . 3 . . . . 2 . . . . . 1 . 1 . . 4 1 . . . . . 1 . 1 4 Builder 17 | . . . 2 . . . . . . . . . . . . 1 . . 3 2 . . . . . 3 . 2 4 Tunneler 6 | . . 2 . 2 . 1 . . . . . . . . . . . . 1 . . . . . . . . . . Hauler 15 | . 1 . 3 . . . 2 4 . . . . . . . . . . 1 . . . . . 1 . . 1 2 Recycler 16 | . . . 3 1 . . . 4 . . . . . . . 4 . . 1 1 . . . . . . . . 2 Mechanic 2 | . . . . . . . 1 . . . . . . . . . . . . . . . . . . . . . 1 Operator 3 | . . . . . . . . . . . . . . . . . . . . 1 . . . . . . . 1 1 Watcher 22 | . 1 . 3 . . . 2 1 . . . . . . . 2 1 . 1 . . . . . 2 3 . 3 3 Swarmer 56 | . 6 3 8 3 . . 2 6 3 . . . 3 . . . 13 . . . 3 . . . 3 . . . 3 Saboteur 1 | . . . . . . . . . . . . . . . . . . . . . . . . . . . . . 1 Grunt 151 | . 5 4 12 8 . 2 6 9 . . . . 5 10 . 10 4 . 4 7 . 4 . . 10 23 . 8 20 Brawler 6 | . . . 1 . . . . . . . . . . . . . . . 1 . . . . . . . . 1 3 Duelist 5 | . . . . . . 1 . . . . . . 1 . . 1 1 . . . . . . . . 1 . . . Protector 1 | . . . . . . . . . . . . . . . . . . . . . . . . . . . . . 1 Researcher 9 | . . . . . . . . . . . . . . . . . . . . . . 1 . . . 1 . 3 4 Sentry 40 | . . . 9 . . . 4 . 1 . . . 1 1 1 5 . 4 3 2 . . . . 3 3 2 . 1 Demolisher 2 | . . . . . . . . 2 . . . . . . . . . . . . . . . . . . . . . Hunter 46 | . . . . . . . . . . . . . . 1 . 3 1 . . 7 2 . . 2 4 9 . 2 15 Programmer 58 | . . . . . . . . 3 . . . . . . 2 . . . 4 4 . 1 . 4 3 17 . 14 6 Q-Series 3 | . . . . . . . . . . . . . . . . . . . . . . . . . . . . 1 2 Behemoth 6 | . . . . . . . . . . . . . 1 . . 2 . . 1 . 1 . . . . . . . 1 Cetus Guard 4 | . . . . . . . . . . . . . . . . . 4 . . . . . . . . . . . . S7 Guard 3 | . . . . . . . . . . . . . . . . . . . . . . . . . . . . . 3 Tracker 1 | . . . . . . . . . . . . . . . . . . . . . . . . . . . . . 1 Combat Programmer 2 | . . . . . . . . . . . . . . . . . . . . . . . . . . . . . 2 Striker 2 | . . . . . . . . . . . . . . . . . . . . . . . . . . 2 . . . Alpha 7 1 | . . . . . . . . . . . . . . . . . . . . . . . . . . 1 . . . Fortress 1 | . . . . . . . . . . . . . . . . . . . . . . . . . . . . 1 . Z-Technician 5 | . . . . . . . . . . . . 5 . . . . . . . . . . . . . . . . . Z-Light 2 | . . . . . . . . . . . . 2 . . . . . . . . . . . . . . . . . Packrat 2 | . . . . . . . . . . 2 . . . . . . . . . . . . . . . . . . . Assembled 1 | . . . . . . . . . . . . 1 . . . . . . . . . . . . . . . . . Golem 4 | . . . . . . . . . . . . 3 . . . . . . . . 1 . . . . . . . . Thug 1 | . . 1 . . . . . . . . . . . . . . . . . . . . . . . . . . . Best Kill Streak 17 | . 6 2 10 8 1 4 4 4 3 . . 4 3 3 2 10 6 2 14 7 3 4 . 2 11 9 2 5 17 Combat Bots Only 15 | . 6 2 8 6 1 3 4 3 3 . . 2 3 3 2 4 6 2 3 3 3 4 . 2 11 8 2 4 15 Max Kills in Single Turn 5 | . 2 2 5 2 1 1 2 2 1 1 . 1 2 2 1 3 2 1 5 3 1 1 . 1 1 3 1 2 4 Gunslinging 1 | . 1 1 . . . . . . . . . . . . . . 1 . . . . . . . . . . . . Exploded 4 | . . 1 4 2 . . 1 2 1 . . . 2 2 . 2 . . . . . . . . . 3 . 1 4 Melee 1 | . . . . . . . . . . . . 1 . . . . . . . . . . . . . . . . . Uniques/NPCs Destroyed 2 | . . . . . 1 . . . . . . 1 . . . . . . . . . . . . . . . . . 8R-AWN (-9/Exiles) Z-Imprinter (-7/Deep Caves) Combat | -11 -10 -10 -9 -9 -9 -8 -8 -7 -7 -7 -7 -7 -6 -6 -5 -5 -5 -5 -5 -4 -4 -4 -4 -3 -3 -3 -2 -2 -2 -------- Run | Scr Mat Min Mat Min Exi Min Mat Fac Low Low Zio Dee Pro Fac Fac Ext Cet Arc Hub Fac Upp Upp Zhi Pro Res Tes Res Qua Sec Damage Taken 53709 | . 300 548 807 107 833 132 511 1730 196 . . 4279 633 961 248 1414 2414 195 1423 4668 828 211 . 702 1721 7930 174 3954 16790 Core 3917 | . 69 31 118 35 87 49 48 182 24 . . 273 97 40 . 92 220 . 97 527 72 15 . 37 190 474 . 240 900 Absorbed by Shields 53 | . . . . . . . . . . . . . . . . 53 . . . . . . . . . . . . . Reduced by Siege Mode 2118 | . . . . . . . . . . . . . . . . . . 6 29 39 . . . . 4 360 . 617 1063 Core Remaining (%) 60 | 100 . 60 . . . 27 91 . . . . . 17 95 . . . . 59 . . . . 43 . 48 . . . Volleys Fired 1496 | . 26 30 61 17 36 10 45 59 10 6 . 130 36 24 6 63 73 29 59 111 33 19 . 25 58 195 7 124 204 Largest 3 | . 2 2 2 2 2 2 2 3 3 3 . 3 3 3 3 3 3 3 3 3 3 3 . 3 3 3 2 3 3 Hottest 282 | . 100 76 143 61 68 96 136 164 76 76 . 126 80 75 75 107 135 125 125 95 85 75 . 75 75 282 101 275 225 Shots Fired 2850 | . 52 57 105 24 66 17 87 142 19 14 . 193 66 48 18 107 108 58 145 165 68 38 . 65 139 344 13 314 378 Gun 1340 | . 52 56 69 8 60 8 . 107 15 14 . 124 10 . . . 22 29 82 72 10 . . . . 196 9 200 197 Cannon 1372 | . . . 20 . 6 9 85 19 . . . 69 51 46 18 99 86 29 63 93 58 38 . 65 139 132 3 114 130 Launcher 129 | . . 1 16 16 . . 2 16 4 . . . 5 2 . 8 . . . . . . . . . 7 1 . 51 Special 9 | . . . . . . . . . . . . . . . . . . . . . . . . . . 9 . . . Kinetic 1134 | . 7 45 19 8 60 8 . 107 15 14 . 124 10 . . 1 14 16 50 72 10 . . . . 117 12 217 208 Thermal 1380 | . 45 10 70 . 6 9 85 19 . . . 69 51 46 18 98 86 29 63 93 58 38 . 65 139 133 . 62 88 Explosive 85 | . . 1 16 16 . . 2 16 4 . . . 5 2 . 8 . . . . . . . . . 7 1 . 7 Electromagnetic 242 | . . 1 . . . . . . . . . . . . . . 8 13 32 . . . . . . 78 . 35 75 Robot Hit Streak 67 | . 11 15 7 4 17 17 7 19 10 19 . 56 23 39 45 38 13 9 30 12 20 25 . 8 18 49 15 55 67 Robot Miss Streak 5 | . 2 2 3 3 5 2 4 3 3 2 . 5 1 1 1 4 5 1 1 3 1 2 . 3 2 2 . 3 4 Penetration Max 2 | . . . . . . . . . . . . . . . . . . . 1 1 . . . . . 1 1 2 1 Secondary Targets 15 | . 4 1 . . . . . 4 . . . . . . . . 1 . . . . . . . . 2 . 1 2 Max Gunslinging Chain 1 | . 1 1 . . . . . 1 . . . . . . . . 1 . . . . . . . . 1 . 1 1 Capacitor 35 | . . . . . . . . . . . . . . . . . . . . . . . . . . . . . 35 Shots Hit Robots 1987 | . 37 41 54 17 57 13 54 100 14 11 . 131 39 40 15 74 66 25 93 113 34 17 . 30 84 273 11 243 301 Core Hits 1239 | . 23 15 61 23 24 13 26 83 8 9 . 46 23 23 4 54 41 12 38 46 17 9 . 11 49 145 9 120 307 Critical Hits 167 | . . . 3 . 1 1 10 2 . . . 24 5 . . . 1 1 4 12 2 . . . . 28 1 57 15 Critical Kills 44 | . . . 2 . . 1 4 1 . . . 2 . . . . . . 1 6 . . . . . 9 . 16 2 Critical Parts Destroyed 93 | . . . 1 . . . 6 1 . . . 12 4 . . . 1 1 3 6 2 . . . . 16 1 30 9 Melee Attacks . | . . . . . . . . . . . . . . . . . . . . . . . . . . . . . . Impact . | . . . . . . . . . . . . . . . . . . . . . . . . . . . . . . Slashing . | . . . . . . . . . . . . . . . . . . . . . . . . . . . . . . Piercing . | . . . . . . . . . . . . . . . . . . . . . . . . . . . . . . Sneak Attacks . | . . . . . . . . . . . . . . . . . . . . . . . . . . . . . . Combat Hostiles . | . . . . . . . . . . . . . . . . . . . . . . . . . . . . . . Follow-up Attacks . | . . . . . . . . . . . . . . . . . . . . . . . . . . . . . . Damage Inflicted 79218 | . 502 534 2253 1109 1118 305 1377 2661 424 210 . 3497 2338 1966 715 5215 3218 1000 4221 4709 1440 943 . 1631 3773 10911 336 5465 17347 Guns 21392 | . 437 489 697 93 977 140 . 1694 175 210 . 1425 105 . . . 183 324 1455 1276 158 . . . . 4060 210 3129 4155 Cannons 37340 | . . . 233 . 124 165 1125 296 . . . 1222 1588 1652 715 3640 3035 509 2013 3415 1282 943 . 1631 3773 4160 126 2095 3598 Explosions 20320 | . 65 45 1306 1016 . . 252 638 249 . . 791 645 314 . 1568 . 167 753 . . . . . . 2676 . 241 9594 Melee . | . . . . . . . . . . . . . . . . . . . . . . . . . . . . . . Ramming 166 | . . . 17 . 17 . . 33 . . . 59 . . . 7 . . . 18 . . . . . 15 . . . Kinetic 18713 | . 56 366 133 93 977 140 . 1694 175 210 . 1425 105 . . 14 105 200 879 1276 158 . . . . 2237 336 3559 4575 Thermal 39321 | . 381 111 797 . 124 165 1125 296 . . . 2013 1588 1652 715 3626 3035 676 2078 3415 1282 943 . 1631 3773 4122 . 1397 4376 Explosive 11966 | . . 45 1306 1016 . . 252 638 249 . . . 645 314 . 1568 . . . . . . . . . 2676 . . 3257 Electromagnetic 9052 | . 65 12 . . . . . . . . . . . . . . 78 124 1264 . . . . . . 1861 . 509 5139 Impact . | . . . . . . . . . . . . . . . . . . . . . . . . . . . . . . Slashing . | . . . . . . . . . . . . . . . . . . . . . . . . . . . . . . Piercing . | . . . . . . . . . . . . . . . . . . . . . . . . . . . . . . Highest Corruption 47 | . . . 3 3 3 3 . . . . . . . . 2 3 3 3 6 4 4 4 4 7 6 47 . 11 32 Average Corruption 8 | . . . 1 3 3 3 . . . . . . . . 1 2 3 3 3 3 4 4 4 5 5 29 . 8 8 Corruption Purged . | . . . . . . . . . . . . . . . . . . . . . . . . . . . . . . Effects 724 | . . . 15 10 18 3 . . . . . . . . . 36 20 9 22 24 36 20 10 23 27 299 . 95 57 Message Errors 111 | . . . 8 1 3 . . . . . . . . . . 10 7 2 3 2 5 6 1 2 6 34 . 16 5 Matter Fused 126 | . . . 1 3 8 1 . . . . . . . . . 5 5 3 5 3 13 3 6 8 4 42 . 12 4 Heat Flow Errors 47 | . . . . 4 2 . . . . . . . . . . 6 2 1 5 1 4 4 . 3 . 7 . 6 2 Energy Discharges 73 | . . . 4 1 1 1 . . . . . . . . . 5 1 1 4 5 7 2 2 4 . 23 . 10 2 Parts Rejected 5 | . . . . . . . . . . . . . . . . . . . . 1 . . . . . 2 . . 2 Data Loss (minor) 53 | . . . 2 1 1 . . . . . . . . . . 4 3 . . 1 4 3 1 1 3 16 . 10 3 Data Loss (major) 17 | . . . . . . . . . . . . . . . . . . . . . . . . 1 3 9 . 1 3 Misfires 12 | . . . . . . . . . . . . . . . . . . . . . . . . . . 6 . 3 3 Alerts 2 | . . . . . . . . . . . . . . . . . . . . . . . . . . 1 . 1 . Misdirections 40 | . . . . . . . . . . . . . . . . . . . . . . . . . . 38 . 1 1 Targeting Errors 206 | . . . . . 3 1 . . . . . . . . . 5 2 2 5 10 3 2 . 4 11 102 . 30 26 Weapon Failures 32 | . . . . . . . . . . . . . . . . 1 . . . 1 . . . . . 19 . 5 6 Overload Shots . | . . . . . . . . . . . . . . . . . . . . . . . . . . . . . . Overflow Damage 2445 | . . . 9 68 . . 20 56 . . . 170 76 119 74 272 123 8 196 221 6 22 . 222 107 417 . 37 222 Projectiles 1718 | . . . 8 . . . 17 . . . . 32 76 119 74 224 123 . 147 221 6 22 . 222 107 205 . 22 93 Explosions 724 | . . . 1 68 . . 3 56 . . . 135 . . . 48 . 8 49 . . . . . . 212 . 15 129 Melee 3 | . . . . . . . . . . . . 3 . . . . . . . . . . . . . . . . . Knockbacks 5 | . . . . . . . . . . . . . . . . . . . . . . . . . . . . 5 . Impact . | . . . . . . . . . . . . . . . . . . . . . . . . . . . . . . Kinetic 5 | . . . . . . . . . . . . . . . . . . . . . . . . . . . . 5 . Secondary . | . . . . . . . . . . . . . . . . . . . . . . . . . . . . . . Self-Inflicted Damage 791 | . 36 2 38 30 . . . 124 . . . 11 . 109 . 53 . . 155 8 . . . . . . . . 225 Shots 43 | . 1 1 2 2 . . . 5 . . . . . 3 . 4 . . 3 . . . . . . . . . 22 Rammed 19 | . . . 1 . 3 . . 3 . . . 7 . . . 2 . . . 2 . . . . . 1 . . . Targets Rammed 22 | . . . 2 . 3 . . 3 . . . 9 . . . 2 . . . 2 . . . . . 1 . . . Kicked 1 | . . . . . . . . . . . . 1 . . . . . . . . . . . . . . . . . Crushed 2 | . . . 1 . . . . . . . . 1 . . . . . . . . . . . . . . . . . Highest Temperature 401 | . 273 278 348 210 246 357 347 163 . . . 235 234 21 . 189 401 77 213 152 264 260 . 217 . 259 . 188 . Average Temperature 88 | . 76 117 92 90 95 192 88 39 . . . 85 55 7 . 46 163 77 96 93 103 109 . 107 . 112 . 89 . Received Heat Transfer 6418 | . 69 273 354 12 . 54 234 339 24 . . 789 201 246 9 319 225 45 294 111 . 75 . . 276 582 . 363 1524 Effects 10 | . . 3 1 . . . . . . . . 1 . . . . 2 . . . . . . . . 3 . . . Shutdowns 2 | . . . . . . . . . . . . . . . . . 2 . . . . . . . . . . . . Energy Bleed 2 | . . 1 . . . . . . . . . 1 . . . . . . . . . . . . . . . . . Interference 5 | . . 2 . . . . . . . . . . . . . . . . . . . . . . . 3 . . . Matter Decay 1 | . . . 1 . . . . . . . . . . . . . . . . . . . . . . . . . . Siege Activations 39 | . . . . . . . . . . . . . . . . . . 2 3 2 . . . . 2 11 . 7 12 Total Turns 1023 | . . . . . . . . . . . . . . . . . . 64 68 58 . . . . 24 261 . 196 352 Longest Duration 117 | . . . . . . . . . . . . . . . . . . 37 57 42 . . . . 14 56 . 117 83 Robots Corrupted 30 | . . . . . . . . . . . . . . . . . . . 3 . . . . . . 7 . . 20 Combat Hostiles 26 | . . . . . . . . . . . . . . . . . . . . . . . . . . 7 . . 19 Parts Fried 67 | . . . . . . . . . . . . . . . . . 1 . 6 . . . . . . 20 . 1 39 Impact Corruptions 1 | . . . . . . . . . . . . 1 . . . . . . . . . . . . . . . . . Robots Melted 5 | . . . . . . . . . . . . . . . . 1 . . . . . 1 . . 1 2 . . . Combat Hostiles 5 | . . . . . . . . . . . . . . . . 1 . . . . . 1 . . 1 2 . . . Parts Melted 36 | . 2 . 2 . . . 5 . . . . 1 . 3 1 4 2 . . . . 2 . 3 6 3 . . 2 Heat Transferred 29719 | . 1110 296 1554 . 54 296 2035 518 . . . 1756 875 950 350 1875 1700 400 1075 1825 700 575 . 775 2100 2990 . 2192 3718 Parts Sabotaged . | . . . . . . . . . . . . . . . . . . . . . . . . . . . . . . Parts Stolen . | . . . . . . . . . . . . . . . . . . . . . . . . . . . . . . Parts Stripped . | . . . . . . . . . . . . . . . . . . . . . . . . . . . . . . Power Chain Reactions 14 | . 3 . . . . . . . . . . . . . . . . 1 2 . . . . . . . . 1 7 Missiles Intercepted . | . . . . . . . . . . . . . . . . . . . . . . . . . . . . . . Alert | -11 -10 -10 -9 -9 -9 -8 -8 -7 -7 -7 -7 -7 -6 -6 -5 -5 -5 -5 -5 -4 -4 -4 -4 -3 -3 -3 -2 -2 -2 ------- Run | Scr Mat Min Mat Min Exi Min Mat Fac Low Low Zio Dee Pro Fac Fac Ext Cet Arc Hub Fac Upp Upp Zhi Pro Res Tes Res Qua Sec Peak Influence 1797 | . 349 163 568 312 . 75 246 343 . . . . . 366 222 910 814 508 628 572 . . . . 489 765 429 312 1797 Initial 464 | . . 103 33 172 . . 29 89 . . . . . . 105 108 464 325 177 307 . . . . 33 246 429 96 124 Average 286 | . 175 78 438 210 . 8 152 141 . . . . . 205 153 258 549 404 148 380 . . . . 224 290 125 175 817 Maximum Alert Level 5 | . 1 . 2 1 . . 1 1 . . . . . 1 1 3 3 2 2 2 . . . . 2 3 2 1 5 Low Security (%) 45 | . 48 100 8 51 . 100 77 70 . . . . . 45 70 47 . . 70 . . . . . 51 30 93 67 26 Level 1 30 | . 51 . 11 48 . . 22 29 . . . . . 54 29 31 8 48 27 60 . . . . 23 50 . 32 15 Level 2 20 | . . . 80 . . . . . . . . . . . . 19 63 51 2 39 . . . . 24 16 6 . 8 Level 3 2 | . . . . . . . . . . . . . . . . 2 27 . . . . . . . . 3 . . 11 Level 4 2 | . . . . . . . . . . . . . . . . . . . . . . . . . . . . . 33 Level 5 . | . . . . . . . . . . . . . . . . . . . . . . . . . . . . . . High Security . | . . . . . . . . . . . . . . . . . . . . . . . . . . . . . 4 Max Security . | . . . . . . . . . . . . . . . . . . . . . . . . . . . . . . Squads Dispatched 94 | . 3 . 3 . . . 2 7 . . . . . 6 1 6 . . 6 5 . . . . 3 12 1 9 30 Investigation 11 | . 2 . 2 . . . . . . . . . . 4 . 2 . . . . . . . . 1 . . . . Extermination 24 | . . . . . . . . 3 . . . . . 1 1 . . . 1 1 . . . . 1 6 1 6 3 Reinforcement 36 | . 1 . . . . . 2 1 . . . . . 1 . 2 . . 4 4 . . . . 1 5 . 3 12 Assault 13 | . . . 1 . . . . . . . . . . . . 2 . . . . . . . . . 1 . . 9 Garrison 7 | . . . . . . . . 3 . . . . . . . . . . 1 . . . . . . . . . 3 Intercept 3 | . . . . . . . . . . . . . . . . . . . . . . . . . . . . . 3 Construction Impeded 7 | . . . . . . . . . . . . . . 1 . 1 . . 1 2 . . . . . 1 . . 1 Haulers Reinforced 6 | . . . . . . . . . . . . . . . . . . . 1 1 . . . . 1 1 . 1 1 Stealth | -11 -10 -10 -9 -9 -9 -8 -8 -7 -7 -7 -7 -7 -6 -6 -5 -5 -5 -5 -5 -4 -4 -4 -4 -3 -3 -3 -2 -2 -2 --------- Run | Scr Mat Min Mat Min Exi Min Mat Fac Low Low Zio Dee Pro Fac Fac Ext Cet Arc Hub Fac Upp Upp Zhi Pro Res Tes Res Qua Sec Distress Signals 30 | . 2 . 3 . . 1 2 1 . . . . . . . 3 1 . . 4 . . . . 5 2 . 2 4 Communications Jammed 197 | . . . . . . . . . . . . . . . . . . . . . . . . . . . . 2 195 Distress Signals 196 | . . . . . . . . . . . . . . . . . . . . . . . . . . . . 1 195 Times Spotted 679 | . 20 11 49 14 1 3 24 45 4 . . 7 11 24 3 55 39 7 22 33 8 4 . 6 33 72 1 37 146 Peak Tracking Total 38 | . 7 3 6 3 2 2 5 6 3 . . 5 3 4 2 12 8 1 4 7 4 3 . 2 9 7 2 5 38 Tactical Retreats 56 | . . 3 1 4 . . 7 6 . . . 2 1 10 . 1 7 . 3 2 . . . . . 2 . . 7 Traps | -11 -10 -10 -9 -9 -9 -8 -8 -7 -7 -7 -7 -7 -6 -6 -5 -5 -5 -5 -5 -4 -4 -4 -4 -3 -3 -3 -2 -2 -2 ------- Run | Scr Mat Min Mat Min Exi Min Mat Fac Low Low Zio Dee Pro Fac Fac Ext Cet Arc Hub Fac Upp Upp Zhi Pro Res Tes Res Qua Sec Traps Triggered 21 | . . . 4 . . . . 1 . . . . . 3 1 6 . . . . . . . . 1 3 . 1 1 Indirectly . | . . . . . . . . . . . . . . . . . . . . . . . . . . . . . . Trap Hack Attempts . | . . . . . . . . . . . . . . . . . . . . . . . . . . . . . . Triggered . | . . . . . . . . . . . . . . . . . . . . . . . . . . . . . . Disarmed . | . . . . . . . . . . . . . . . . . . . . . . . . . . . . . . Reprogrammed . | . . . . . . . . . . . . . . . . . . . . . . . . . . . . . . Reused . | . . . . . . . . . . . . . . . . . . . . . . . . . . . . . . Traps Extracted . | . . . . . . . . . . . . . . . . . . . . . . . . . . . . . . Installed 6 | . . . . . . . . . . . . . . . . . . . . . . . . . . 6 . . . Triggered 4 | . . . . . . . . . 1 1 . . . . . . . . . . . 1 . 1 . . . . . Fabricated Traps 6 | . . . . . . . . . . . . . . . . . . . . . . . . . . 6 . . . Machines | -11 -10 -10 -9 -9 -9 -8 -8 -7 -7 -7 -7 -7 -6 -6 -5 -5 -5 -5 -5 -4 -4 -4 -4 -3 -3 -3 -2 -2 -2 ---------- Run | Scr Mat Min Mat Min Exi Min Mat Fac Low Low Zio Dee Pro Fac Fac Ext Cet Arc Hub Fac Upp Upp Zhi Pro Res Tes Res Qua Sec Machines Disabled 66 | . 3 . 2 . . . 1 . . 1 . 3 . 5 . 11 4 2 4 1 . . . . 1 9 . 4 15 Max in Single Turn 3 | . 2 . 1 . . . 1 . . 1 . 1 . 3 . 2 2 1 1 1 . . . . 1 2 . 1 2 Garrison Access 4 | . . . . . . . . . . . . . . . . . . . . . . . . . 2 1 . 1 . Network Hub 2 | . . . . . . . . . . . . . . . . . . . 2 . . . . . . . . . . Machines Sabotaged . | . . . . . . . . . . . . . . . . . . . . . . . . . . . . . . Garrisons Compromised . | . . . . . . . . . . . . . . . . . . . . . . . . . . . . . . Overloaded Fab Kills . | . . . . . . . . . . . . . . . . . . . . . . . . . . . . . . Fab Network Shutdowns . | . . . . . . . . . . . . . . . . . . . . . . . . . . . . . . Hacking | -11 -10 -10 -9 -9 -9 -8 -8 -7 -7 -7 -7 -7 -6 -6 -5 -5 -5 -5 -5 -4 -4 -4 -4 -3 -3 -3 -2 -2 -2 --------- Run | Scr Mat Min Mat Min Exi Min Mat Fac Low Low Zio Dee Pro Fac Fac Ext Cet Arc Hub Fac Upp Upp Zhi Pro Res Tes Res Qua Sec Machines Accessed 58 | . 6 . 6 1 2 1 3 2 . . . . . 2 3 1 . . 3 1 . . 4 . 6 9 2 6 . Terminals 33 | . 5 . 4 . . 1 2 1 . . . . . . 2 1 . . 2 . . . . . 2 7 1 5 . Fabricators 4 | . . . . . . . . 1 . . . . . 1 . . . . . . . . . . 1 1 . . . Repair Stations 6 | . . . 1 . . . 1 . . . . . . 1 1 . . . . 1 . . . . 1 . . . . Recycling Units 1 | . 1 . . . . . . . . . . . . . . . . . . . . . . . . . . . . Scanalyzers 2 | . . . 1 . . . . . . . . . . . . . . . . . . . . . . . 1 . . Garrison Access 5 | . . . . . . . . . . . . . . . . . . . 1 . . . . . 2 1 . 1 . Total Hacks 230 | . 12 . 21 1 2 2 11 4 . . . . . 7 4 4 . . 8 13 . . 17 . 18 37 24 45 . Successful 123 | . 6 . 12 1 2 1 6 3 . . . . . 2 2 . . . 4 4 . . 17 . 10 12 20 21 . Failed 105 | . 6 . 9 . . 1 4 1 . . . . . 5 2 4 . . 4 9 . . . . 8 25 4 23 . Catastrophic 20 | . 1 . 1 . . . . . . . . . . . . . . . 2 . . . . . 3 7 . 6 . Database Lockouts 2 | . . . . . . . 1 . . . . . . . . . . . . . . . . . . . . 1 . Manual 79 | . 8 . 15 . 1 2 6 1 . 1 4 . . . . . . . 2 . . . . . 6 6 . 27 . Terminals 138 | . 11 . 16 . . 2 5 1 . . . . . . 3 4 . . 6 . . . . . 11 31 5 43 . Fabricators 11 | . . . . . . . . 3 . . . . . 3 . . . . . . . . . . 3 2 . . . Repair Stations 29 | . . . 3 . . . 6 . . . . . . 4 1 . . . . 13 . . . . 2 . . . . Recycling Units 1 | . 1 . . . . . . . . . . . . . . . . . . . . . . . . . . . . Scanalyzers 21 | . . . 2 . . . . . . . . . . . . . . . . . . . . . . . 19 . . Garrison Access 10 | . . . . . . . . . . . . . . . . . . . 2 . . . . . 2 4 . 2 . Terminal Hacks 63 | . 4 . 3 1 2 . 1 1 . . . . . . 2 . . . 4 . . . 17 . 2 8 5 13 . Record 8 | . . . . . 1 . . . . . . . . . . . . . . . . . 5 . . 2 . . . Part Schematic 4 | . . . . . . . . . . . . . . . . . . . . . . . 4 . . . . . . Robot Analysis 10 | . 2 . 1 . . . 1 . . . . . . . . . . . . . . . 4 . . . . 2 . Prototype ID Bank 5 | . . . . . . . . . . . . . . . . . . . . . . . 4 . . . . 1 . Open Door 2 | . . . . 1 . . . . . . . . . . 1 . . . . . . . . . . . . . . Branch Access Points 2 | . . . 1 . . . . 1 . . . . . . . . . . . . . . . . . . . . . Emergency Access Points 1 | . . . . . . . . . . . . . . . . . . . . . . . . . . . . 1 . Machine Index 2 | . . . . . . . . . . . . . . . . . . . . . . . . . . 1 . 1 . Terminal Index 2 | . . . 1 . . . . . . . . . . . 1 . . . . . . . . . . . . . . Repair Station Index 1 | . . . . . . . . . . . . . . . . . . . . . . . . . . . . 1 . Scanalyzer Index 1 | . . . . . . . . . . . . . . . . . . . . . . . . . . . . 1 . Alert Level 7 | . . . . . . . . . . . . . . . . . . . 2 . . . . . 1 2 1 1 . Unreport Threat 9 | . . . . . . . . . . . . . . . . . . . 2 . . . . . . 1 4 2 . Locate Traps 1 | . 1 . . . . . . . . . . . . . . . . . . . . . . . . . . . . Recall Extermination 1 | . . . . . . . . . . . . . . . . . . . . . . . . . . . . 1 . Registered Components 1 | . . . . . . . . . . . . . . . . . . . . . . . . . . 1 . . . Registered Prototypes 2 | . . . . . . . . . . . . . . . . . . . . . . . . . . 1 . 1 . Zone Layout 3 | . 1 . . . . . . . . . . . . . . . . . . . . . . . 1 . . 1 . EX-Prototype ID Bank 1 | . . . . . 1 . . . . . . . . . . . . . . . . . . . . . . . . Fabricator Hacks 7 | . . . . . . . . 2 . . . . . 1 . . . . . . . . . . 2 2 . . . Load Schematic 4 | . . . . . . . . 1 . . . . . 1 . . . . . . . . . . 1 1 . . . Build 3 | . . . . . . . . 1 . . . . . . . . . . . . . . . . 1 1 . . . Repair Station Hacks 14 | . . . 2 . . . 5 . . . . . . 1 . . . . . 4 . . . . 2 . . . . Scan Component 8 | . . . 1 . . . 3 . . . . . . 1 . . . . . 2 . . . . 1 . . . . Repair 6 | . . . 1 . . . 2 . . . . . . . . . . . . 2 . . . . 1 . . . . Recycling Unit Hacks . | . . . . . . . . . . . . . . . . . . . . . . . . . . . . . . Scanalyzer 17 | . . . 2 . . . . . . . . . . . . . . . . . . . . . . . 15 . . Insert Component 9 | . . . 1 . . . . . . . . . . . . . . . . . . . . . . . 8 . . Analyze 8 | . . . 1 . . . . . . . . . . . . . . . . . . . . . . . 7 . . Garrison Access Hacks 4 | . . . . . . . . . . . . . . . . . . . . . . . . . 2 1 . 1 . Seal Access 4 | . . . . . . . . . . . . . . . . . . . . . . . . . 2 1 . 1 . Unauthorized Hacks 18 | . 2 . 5 . . 1 . . . . . . . . . . . . . . . . . . 2 1 . 7 . Terminals 17 | . 1 . 5 . . 1 . . . . . . . . . . . . . . . . . . 2 1 . 7 . Track 9 | . 1 . 4 . . 1 . . . . . . . . . . . . . . . . . . 1 . . 2 . Assimilate 1 | . . . . . . . . . . . . . . . . . . . . . . . . . . . . 1 . Botnet 6 | . . . 1 . . . . . . . . . . . . . . . . . . . . . 1 1 . 3 . Operators 1 | . . . . . . . . . . . . . . . . . . . . . . . . . . . . 1 . Fabricators . | . . . . . . . . . . . . . . . . . . . . . . . . . . . . . . Repair Stations . | . . . . . . . . . . . . . . . . . . . . . . . . . . . . . . Recycling Units 1 | . 1 . . . . . . . . . . . . . . . . . . . . . . . . . . . . Tunnel 1 | . 1 . . . . . . . . . . . . . . . . . . . . . . . . . . . . Scanalyzers . | . . . . . . . . . . . . . . . . . . . . . . . . . . . . . . Garrison Access . | . . . . . . . . . . . . . . . . . . . . . . . . . . . . . . Data Cores Recovered 1 | . . . . . . . . . . . . . . . . . . . . . . . . . . . . 1 . Used . | . . . . . . . . . . . . . . . . . . . . . . . . . . . . . . Hacking Detections 40 | . 5 . 6 . . . 3 1 . . . . . 2 3 1 . . 3 1 . . . . 2 7 1 5 . Full Trace Events 7 | . 2 . 1 . . . . . . . . . . 2 . 1 . . . . . . . . 1 . . . . Feedback Events 1 | . . . . . . . . . . . . . . . . 1 . . . . . . . . . . . . . Corruption 1 | . . . . . . . . . . . . . . . . 1 . . . . . . . . . . . . . Feedback Blocked . | . . . . . . . . . . . . . . . . . . . . . . . . . . . . . . Robot Schematics Acquired . | . . . . . . . . . . . . . . . . . . . . . . . . . . . . . . Robots Built . | . . . . . . . . . . . . . . . . . . . . . . . . . . . . . . Matter . | . . . . . . . . . . . . . . . . . . . . . . . . . . . . . . Time . | . . . . . . . . . . . . . . . . . . . . . . . . . . . . . . Total Robot Build Rating . | . . . . . . . . . . . . . . . . . . . . . . . . . . . . . . Part Schematics Acquired 10 | . . . 1 . . . . . . . . . . . . . . . . . . . 4 . . . 5 . . Parts Built 3 | . . . . . . . . 1 . . . . . . . . . . . . . . . . 1 1 . . . Matter 555 | . . . . . . . . 102 . . . . . . . . . . . . . . . . 351 102 . . . Time 169 | . . . . . . . . 25 . . . . . . . . . . . . . . . . 93 51 . . . Total Part Build Rating 9 | . . . . . . . . 1 . . . . . . . . . . . . . . . . 7 1 . . . Parts Repaired 6 | . . . 1 . . . 2 . . . . . . . . . . . . 2 . . . . 1 . . . . Time 242 | . . . 26 . . . 82 . . . . . . . . . . . . 26 . . . . 108 . . . . Parts Recycled . | . . . . . . . . . . . . . . . . . . . . . . . . . . . . . . Recycled Matter . | . . . . . . . . . . . . . . . . . . . . . . . . . . . . . . Retrieved Matter . | . . . . . . . . . . . . . . . . . . . . . . . . . . . . . . Retrieved Components . | . . . . . . . . . . . . . . . . . . . . . . . . . . . . . . Parts Scanalyzed 7 | . . . 1 . . . . . . . . . . . . . . . . . . . . . . . 6 . . Part Schematics Acquired 6 | . . . 1 . . . . . . . . . . . . . . . . . . . . . . . 5 . . Parts Damaged 1 | . . . . . . . . . . . . . . . . . . . . . . . . . . . 1 . . Bothacking | -11 -10 -10 -9 -9 -9 -8 -8 -7 -7 -7 -7 -7 -6 -6 -5 -5 -5 -5 -5 -4 -4 -4 -4 -3 -3 -3 -2 -2 -2 ------------ Run | Scr Mat Min Mat Min Exi Min Mat Fac Low Low Zio Dee Pro Fac Fac Ext Cet Arc Hub Fac Upp Upp Zhi Pro Res Tes Res Qua Sec Used RIF Installer . | . . . . . . . . . . . . . . . . . . . . . . . . . . . . . . Robots Hacked . | . . . . . . . . . . . . . . . . . . . . . . . . . . . . . . Non-combat . | . . . . . . . . . . . . . . . . . . . . . . . . . . . . . . Combat . | . . . . . . . . . . . . . . . . . . . . . . . . . . . . . . Robot Hacks Applied . | . . . . . . . . . . . . . . . . . . . . . . . . . . . . . . Relay Couplers Released 1 | . . . . . . . . . . . . . . . . . . . . . . . . . 1 . . . . Machine Destruction 1 | . . . . . . . . . . . . . . . . . . . . . . . . . 1 . . . . Robots Rewired 7 | . . . . . . . . . . . . . . . . 7 . . . . . . . . . . . . . Allies Hacked . | . . . . . . . . . . . . . . . . . . . . . . . . . . . . . . Hacks Repelled . | . . . . . . . . . . . . . . . . . . . . . . . . . . . . . . Allies | -11 -10 -10 -9 -9 -9 -8 -8 -7 -7 -7 -7 -7 -6 -6 -5 -5 -5 -5 -5 -4 -4 -4 -4 -3 -3 -3 -2 -2 -2 -------- Run | Scr Mat Min Mat Min Exi Min Mat Fac Low Low Zio Dee Pro Fac Fac Ext Cet Arc Hub Fac Upp Upp Zhi Pro Res Tes Res Qua Sec Total Allies 20 | . . 1 . . . . . . . . . . . . . 11 . . . . . . . . . . . 1 7 Largest Group 8 | . . 1 . . . . . . . . . . . . . 8 . . . . . . . . . . . 1 7 Highest-Rated Group 242 | . . 31 . . . . . . . . . . . . . 242 . . . . . . . . . . . 10 99 Highest-Rated Ally 156 | . . 31 . . . . . . . . . . . . . 156 . . . . . . . . . . . 10 15 Total Orders 1 | . . . . . . . . . . . . . . 1 . . . . . . . . . . . . . . . RETURN 1 | . . . . . . . . . . . . . . 1 . . . . . . . . . . . . . . . Ally Attacks 182 | . . 17 . . . . . . . . . . . . . 92 . . . . . . . . . 9 . . 64 Total Damage 3297 | . . 271 . . . . . . . . . . . . . 1899 . . . . . . . . . 166 . . 961 Kills 28 | . . 2 . . . . . . . . . . . . . 19 . . . . . . . . . 1 . . 6 Allies Corrupted 3 | . . . . . . . . . . . . . . . . 1 . . . . . . . . . 1 . . 1 Allies Melted 1 | . . . . . . . . . . . . . . . . 1 . . . . . . . . . . . . . Intel | -11 -10 -10 -9 -9 -9 -8 -8 -7 -7 -7 -7 -7 -6 -6 -5 -5 -5 -5 -5 -4 -4 -4 -4 -3 -3 -3 -2 -2 -2 ------- Run | Scr Mat Min Mat Min Exi Min Mat Fac Low Low Zio Dee Pro Fac Fac Ext Cet Arc Hub Fac Upp Upp Zhi Pro Res Tes Res Qua Sec Robot Analysis Total 10 | . 2 . 1 . . . 1 . . . . . . . . . . . . . . . 4 . . . . 2 . Derelict Logs Recovered 10 | . . 2 . 1 . . . . 1 1 1 . 2 . . . . . . . 2 . . . . . . . . Drone Launches 3 | . . . . . . . . . . . . . . 1 . . . . . . . . . . . 2 . . . Drone Recoveries 1 | . . . . . . . . . . . . . . 1 . . . . . . . . . . . . . . . Exploration | -11 -10 -10 -9 -9 -9 -8 -8 -7 -7 -7 -7 -7 -6 -6 -5 -5 -5 -5 -5 -4 -4 -4 -4 -3 -3 -3 -2 -2 -2 ------------- Run | Scr Mat Min Mat Min Exi Min Mat Fac Low Low Zio Dee Pro Fac Fac Ext Cet Arc Hub Fac Upp Upp Zhi Pro Res Tes Res Qua Sec Turns Passed 37665 | . 737 1077 2473 860 1161 235 960 1818 903 580 2352 4622 1204 867 398 1807 984 386 854 896 1762 1104 588 759 1424 3114 283 2100 1357 Spaces Moved 14738 | 1 422 533 1222 245 530 103 345 716 392 251 1062 1763 554 240 165 710 107 70 323 260 524 517 154 306 572 1263 132 871 385 Core . | . . . . . . . . . . . . . . . . . . . . . . . . . . . . . . Treads 10358 | . 274 533 1222 245 530 103 345 716 392 251 1062 1287 . . . . 80 70 323 80 . . . . 194 1263 132 871 385 Legs 4235 | 1 5 . . . . . . . . . . 476 554 240 165 710 27 . . 180 524 517 152 306 378 . . . . Wheels 143 | . 143 . . . . . . . . . . . . . . . . . . . . . . . . . . . . Hover 2 | . . . . . . . . . . . . . . . . . . . . . . . 2 . . . . . . Flight . | . . . . . . . . . . . . . . . . . . . . . . . . . . . . . . Fastest Speed 100 | 120 100 180 180 180 180 200 200 200 220 220 220 160 190 190 210 185 180 180 200 163 140 186 186 186 172 172 185 162 152 Average Speed 196 | 120 147 180 180 180 188 200 212 218 220 220 220 213 190 216 216 209 186 198 200 194 185 186 190 186 185 188 185 188 172 Slowest Speed 660 | 120 180 180 220 180 200 200 220 220 220 220 220 280 190 300 300 210 200 200 200 270 210 186 660 186 186 240 185 200 200 Overloaded Moves . | . . . . . . . . . . . . . . . . . . . . . . . . . . . . . . Propulsion Burnouts . | . . . . . . . . . . . . . . . . . . . . . . . . . . . . . . Robots Hopped . | . . . . . . . . . . . . . . . . . . . . . . . . . . . . . . Cave-ins Triggered . | . . . . . . . . . . . . . . . . . . . . . . . . . . . . . . Teleports 1 | . . . . . . . . . . . . . . . . . . . . . . . . . . . . . 1 Exploration Rate (%) 51 | 2 70 88 89 40 70 32 40 18 72 50 82 82 59 10 4 79 48 70 49 6 70 64 61 54 19 89 5 89 27 Regions Visited 29 Branch Regions 20 Pre-discovered Areas 9 | . 1 1 . 2 1 . . . . . 1 . . . . . . . . . . . 3 . . . . . . Known Exits Taken 16 | . . 1 1 . . . . 1 1 1 1 . 1 . 1 1 . . . . 1 1 1 1 1 1 1 . . Unknown Exits Taken 13 | 1 1 . . 1 1 1 1 . . . . 1 . 1 . . 1 1 1 1 . . . . . . . 1 . Scrap Searched 17 | . . 1 . 1 . 2 . . 1 2 4 . 1 . . . . . . . 1 1 . 3 . . . . . Spaces Dug 169 | . . 7 24 30 . . . 48 . . . . 2 . . . 3 5 . . 14 4 . 9 9 10 . 2 2 Terrain Destroyed 1393 | . 1 7 80 151 . . 21 102 19 . . 27 69 22 3 74 13 23 366 36 31 15 . 34 40 78 17 26 138 Melee . | . . . . . . . . . . . . . . . . . . . . . . . . . . . . . . Projectile 337 | . . . . . . . . . . . . 5 17 4 3 8 13 22 41 36 31 15 . 34 40 41 . 16 11 AOE 1056 | . 1 7 80 151 . . 21 102 19 . . 22 52 18 . 66 . 1 325 . . . . . . 37 17 10 127 Terrain Rammed . | . . . . . . . . . . . . . . . . . . . . . . . . . . . . . . Walls Destroyed . | . . . . . . . . . . . . . . . . . . . . . . . . . . . . . . Machines Disabled . | . . . . . . . . . . . . . . . . . . . . . . . . . . . . . . Actions | -11 -10 -10 -9 -9 -9 -8 -8 -7 -7 -7 -7 -7 -6 -6 -5 -5 -5 -5 -5 -4 -4 -4 -4 -3 -3 -3 -2 -2 -2 --------- Run | Scr Mat Min Mat Min Exi Min Mat Fac Low Low Zio Dee Pro Fac Fac Ext Cet Arc Hub Fac Upp Upp Zhi Pro Res Tes Res Qua Sec Total 21241 | . 488 594 1400 641 630 116 488 888 420 273 1081 2475 646 546 196 921 802 271 413 493 1259 629 450 446 828 1728 168 1174 777 Wait 3830 | . 13 17 15 375 . . 69 48 8 10 . 475 55 267 2 26 582 167 30 83 663 84 276 103 173 122 . 84 83 Move 14710 | . 421 532 1221 244 529 102 344 716 391 250 1061 1762 553 239 164 709 106 69 322 259 523 516 153 305 571 1262 131 870 385 Hop . | . . . . . . . . . . . . . . . . . . . . . . . . . . . . . . Pick Up 313 | . 12 5 42 1 31 1 12 14 1 2 7 39 . 4 5 1 8 . 1 20 15 1 5 3 6 43 9 19 6 Fast Attach 131 | . 4 . 4 1 3 . 1 4 3 . 1 12 . 1 4 1 5 1 . 5 4 2 7 1 2 15 2 20 28 Attach 162 | . 2 5 6 . 5 1 5 9 1 1 1 17 1 1 5 . 3 1 1 7 5 1 . 1 5 39 5 9 25 Detach 33 | . . . 1 . . . 1 1 1 . . 3 . . 3 . . 1 . . 2 2 . . . 6 2 1 9 Swap 109 | . 2 4 19 1 7 1 5 18 2 1 2 4 1 2 2 3 2 . . . 1 1 . . 1 8 1 13 8 Drop 298 | . 8 1 29 2 16 1 6 17 3 3 9 24 . 8 5 1 23 3 . 6 13 3 9 8 12 31 11 34 12 Fire 1496 | . 26 30 61 17 36 10 45 59 10 6 . 130 36 24 6 63 73 29 59 111 33 19 . 25 58 195 7 124 204 Melee . | . . . . . . . . . . . . . . . . . . . . . . . . . . . . . . Ram 1 | . . . . . . . . . . . . . . . . . . . . . . . . . . . . . 1 Kick 10 | . . . . . . . . . . . . 6 . . . 2 . . . 2 . . . . . . . . . Crush 11 | . . . 2 . 3 . . 2 . . . 3 . . . . . . . . . . . . . 1 . . . Escape Stasis 41 | . . . . . . . . . . . . . . . . 25 . . . . . . . . . . . . 16 Rewire 90 | . . . . . . . . . . . . . . . . 90 . . . . . . . . . . . . . Trap 6 | . . . . . . . . . . . . . . . . . . . . . . . . . . 6 . . . Miscellaneous . | . . . . . . . . . . . . . . . . . . . . . . . . . . . . . . Route ------- -11/Scrapyard -10/Materials (discovered 4 exits: *Mat x3 / [*Min]) -10/Mines (discovered 2 exits: *Mat x2) -9/Materials (discovered 5 exits: *Mat x3 / *Min x2) -9/Mines (discovered 2 exits: *Mat / *Exi) -9/Exiles -8/Mines -8/Materials -7/Factory (discovered 2 exits: *Low x2) -7/Lower Caves -7/Lower Caves (discovered 2 exits: Fac / *Zio) -7/Zion (discovered 2 exits: *Dee / [*Pro]) -7/Deep Caves -6/Proximity Caves -6/Factory -5/Factory (discovered 2 exits: Upp / *Ext) -5/Extension (discovered 2 exits: *Fac / *Cet) -5/Cetus -5/Archives (discovered 2 exits: *Fac / *Hub) -5/Hub_04(d) (discovered 3 exits: *Fac x3) -4/Factory -4/Upper Caves -4/Upper Caves -4/Zhirov -3/Proximity Caves -3/Research -3/Testing -2/Research -2/Quarantine (discovered 2 exits: *Acc / [*Sec]) -2/Section 7 History --------- Turn | Location | Event 1 | -11/Scrapyard | Discovered new exit (range 0) 1 | -11/Scrapyard | Entered Materials 207 | -10/Materials | Discovered new exit (range 11) 316 | -10/Materials | Build established: Mutant 349 | -10/Materials | Discovered new exit (range 11) 603 | -10/Materials | Discovered new exit (range 5) 653 | -10/Materials | Discovered new exit (range 14) 738 | -10/Materials | Entered Mines 776 | -10/Mines | Identified exit to Materials 1118 | -10/Mines | Learned location of Mines (-8) 1367 | -10/Mines | Found a damaged Exp. Sensor Array with a note attached 1370 | -10/Mines | Found Prototype Device 1525 | -10/Mines | Received a Mining Laser from a helpful Derelict 1530 | -10/Mines | Discovered exit to Materials (range 4) 1815 | -10/Mines | Entered Materials 1815 | -9/Materials | Evolved 2 slots: Utility x2 1830 | -9/Materials | Identified Exp. Sensor Array 2052 | -9/Materials | Discovered new exit (range 16) 2101 | -9/Materials | Destroyed 8 combat bots 2313 | -9/Materials | Discovered new exit (range 15) 2394 | -9/Materials | Repaired Lgt. Treads 2509 | -9/Materials | Identified exit to Mines 2573 | -9/Materials | Discovered new exit (range 8) 2744 | -9/Materials | Build established: Hauler-Mutant 4037 | -9/Materials | Discovered new exit (range 4) 4215 | -9/Materials | First assault squad dispatched 4288 | -9/Materials | Entered Mines 4465 | -9/Mines | Learned location of Storage (-8) 4545 | -9/Mines | Deemed a non-threat by the Exiles lab entrance 4545 | -9/Mines | Discovered new exit (range 5) 4749 | -9/Mines | Excavation squad dispatched 4749 | -9/Mines | A large section of the Mines collapsed 5019 | -9/Mines | Discovered new exit (range 3) 5036 | -9/Mines | Met a Derelict who couldn't figure out how to use a Trap Extractor 5148 | -9/Mines | Entered Exiles 5195 | -9/Exiles | Met 8R-AWN 5415 | -9/Exiles | Met EX-HEX 5602 | -9/Exiles | Met EX-DEC 5744 | -9/Exiles | Learned location of Zion (-7) 5778 | -9/Exiles | Met EX-BIN 5806 | -9/Exiles | Aligned with FarCom system 5808 | -9/Exiles | Given EX-Vault access code 5854 | -9/Exiles | Opened EX-Vault 5870 | -9/Exiles | Found Cloak of Protection 5913 | -9/Exiles | Warned to stay clear of 0b10 Research branches 5936 | -9/Exiles | Exiles lab attacked by MAIN.C 6039 | -9/Exiles | Discovered new exit (range 14) 6093 | -9/Exiles | Attacked by the Exiles 6150 | -9/Exiles | Core integrity fell below 50% 6205 | -9/Exiles | Lost 4 parts (2n1u1w) 6214 | -9/Exiles | Destroyed 8R-AWN 6225 | -9/Exiles | Found Prototype Processor 6228 | -9/Exiles | Found Prototype Ballistic Gun 6264 | -9/Exiles | Found Prototype Device 6276 | -9/Exiles | Found Prototype Ballistic Gun 6282 | -9/Exiles | Found Prototype Protection 6309 | -9/Exiles | Entered Mines 6534 | -8/Mines | Discovered new exit (range 5) 6544 | -8/Mines | Entered Materials 6544 | -8/Materials | Evolved 2 slots: Utility x2 6544 | -8/Materials | Identified AS-neutralizer No. 17b 6685 | -8/Materials | Repaired Rnf. Fission Core 6712 | -8/Materials | Repaired Hcp. Storage Unit 7371 | -8/Materials | Central database locked down 7469 | -8/Materials | Discovered new exit (range 11) 7504 | -8/Materials | Entered Factory 7504 | -7/Factory | Evolved 2 slots: Utility x1, Weapon x1 7504 | -7/Factory | Identified Exp. Targeting Computer 7604 | -7/Factory | Assembled infested ambush trap array 7922 | -7/Factory | Lost 3 parts (1u2w) 8511 | -7/Factory | Fabricated Hcp. Storage Unit (x1) 8602 | -7/Factory | Identified exit to Lower Caves 8902 | -7/Factory | Garrison activated, responded to threat 9322 | -7/Factory | Entered Lower Caves 9703 | -7/Lower Caves | Attracted the attention of an 0b10 checkpoint 9942 | -7/Lower Caves | Learned Factory security intel 10036 | -7/Lower Caves | Build established: Scavenger-Skirmisher 10175 | -7/Lower Caves | Discovered new exit (range 7) 10190 | -7/Lower Caves | Identified exit to Lower Caves 10225 | -7/Lower Caves | Entered another Lower Caves area 10343 | -7/Lower Caves | Encountered a Warlord checkpoint 10373 | -7/Lower Caves | Identified exit to Factory 10665 | -7/Lower Caves | Acquired the password to a Derelict Tinkerer's latest research 10677 | -7/Lower Caves | Found Prototype Special Weapon 10773 | -7/Lower Caves | Discovered new exit (range 11) 10803 | -7/Lower Caves | Identified exit to Zion 10805 | -7/Lower Caves | Entered Zion 10945 | -7/Zion | Build established: Scavenger-Mutant 11061 | -7/Zion | Given the Hacking Drone Bay 11061 | -7/Zion | Found Prototype Device 11152 | -7/Zion | Discovered new exit (range 15) 11343 | -7/Zion | Acquired unknown access codes intercepted by a Zionite 11387 | -7/Zion | Received a hallucinogenic algorithm 11420 | -7/Zion | Learned Factory emergency access door positions 11977 | -7/Zion | Identified exit to Deep Caves 12079 | -7/Zion | Identified 8R-AWN's Armor/EX 12080 | -7/Zion | Identified 8R-AWN's Boregun (x2) 12092 | -7/Zion | Visited the Megawrench Repair Shop 12092 | -7/Zion | Megawrench repaired 11 parts 12369 | -7/Zion | Build established: Scavenger-Gunner 12660 | -7/Zion | Given A8's code to call for help 12816 | -7/Zion | Found Prototype Device 13115 | -7/Zion | Opened final containment barrier to the Deep Caves 13150 | -7/Zion | Saw the warning signs outside the Deep Caves entrance 13157 | -7/Zion | Entered Deep Caves 13557 | -7/Deep Caves | Identified Hacking Drone Bay 13749 | -7/Deep Caves | Attacked by Z-Imprinter 13775 | -7/Deep Caves | Destroyed Z-Imprinter 13828 | -7/Deep Caves | Found Prototype Device 13828 | -7/Deep Caves | Identified Zio. Metafield Generator 13838 | -7/Deep Caves | Found Prototype Protection 13838 | -7/Deep Caves | Identified Zio. Weapon Casing 13843 | -7/Deep Caves | Found Zio. Weapon Casing 13844 | -7/Deep Caves | Lost 3 parts (3u) 14105 | -7/Deep Caves | Z-Facility disabled 14590 | -7/Deep Caves | Build established: Scavenger-Mutant 15363 | -7/Deep Caves | Discovered new exit (range 6) 15956 | -7/Deep Caves | Spotted as-61505 15999 | -7/Deep Caves | Core integrity fell below 50% 16044 | -7/Deep Caves | Lost 3 parts (1n1u1w) 16086 | -7/Deep Caves | Lost 3 parts (1n2w) 16088 | -7/Deep Caves | Destroyed as-61505 16201 | -7/Deep Caves | Exposed GOLEM chamber 16205 | -7/Deep Caves | Found GOLEM Unit 16575 | -7/Deep Caves | Build established: Hauler-Mutant 16801 | -7/Deep Caves | Found GOLEM Unit 16813 | -7/Deep Caves | Found GOLEM Unit 16816 | -7/Deep Caves | Found GOLEM Unit 17095 | -7/Deep Caves | Build established: Hauler-Golem 17369 | -7/Deep Caves | Spotted as-00684 17550 | -7/Deep Caves | Destroyed as-00684 17576 | -7/Deep Caves | Lost 3 parts (1p2w) 17779 | -7/Deep Caves | Entered Proximity Caves 17921 | -6/Proximity Caves | Learned 8 Factory zone layouts 17971 | -6/Proximity Caves | Attracted the attention of an 0b10 checkpoint 17994 | -6/Proximity Caves | Spotted B-75 Beast 18093 | -6/Proximity Caves | Destroyed B-75 Beast 18880 | -6/Proximity Caves | Core integrity fell below 20% 18968 | -6/Proximity Caves | Discovered exit to Factory (range 8) 18983 | -6/Proximity Caves | Entered Factory 18983 | -6/Factory | Evolved 2 slots: Power x1, Utility x1 19585 | -6/Factory | Discovered new exit (range 13) 19850 | -6/Factory | Entered another Factory area 19850 | -5/Factory | Evolved 2 slots: Utility x2 19851 | -5/Factory | Identified exit to Upper Caves 20238 | -5/Factory | Discovered new exit (range 6) 20246 | -5/Factory | Identified exit to Extension 20248 | -5/Factory | Entered Extension 20320 | -5/Extension | Rescued a captive Derelict 20371 | -5/Extension | Rescued a captive Derelict 20541 | -5/Extension | Rescued A7 20542 | -5/Extension | Build established: Hauler-Mutant 21039 | -5/Extension | Spotted B-75 Beast 21044 | -5/Extension | Destroyed B-75 Beast 21070 | -5/Extension | Spotted B-75 Beast 21117 | -5/Extension | Destroyed B-75 Beast 21448 | -5/Extension | Disrupted transfer network 21863 | -5/Extension | Rescued a captive Derelict 22014 | -5/Extension | Disrupted transfer network 22027 | -5/Extension | Discovered new exit (range 10) 22029 | -5/Extension | Discovered new exit (range 6) 22048 | -5/Extension | First assault squad dispatched 22053 | -5/Extension | Identified exit to Cetus 22055 | -5/Extension | Entered Cetus 22085 | -5/Cetus | Lost 4 parts (3u1w) 22357 | -5/Cetus | Build established: Hauler-Golem 22651 | -5/Cetus | Spotted Cetus Guard 22651 | -5/Cetus | Spotted Cetus Guard 22654 | -5/Cetus | Spotted Cetus Guard 22655 | -5/Cetus | Destroyed Cetus Guard 22666 | -5/Cetus | Destroyed Cetus Guard 22677 | -5/Cetus | Destroyed Cetus Guard 22677 | -5/Cetus | Spotted Cetus Guard 22694 | -5/Cetus | Destroyed Cetus Guard 22945 | -5/Cetus | Discovered new exit (range 15) 23039 | -5/Cetus | Entered Archives 23331 | -5/Archives | Discovered new exit (range 16) 23375 | -5/Archives | Discovered new exit (range 15) 23425 | -5/Archives | Entered Hub_04(d) 23435 | -5/Hub_04(d) | Discovered new exit (range 11) 23458 | -5/Hub_04(d) | Spotted B-75 Beast 23508 | -5/Hub_04(d) | Destroyed B-75 Beast 23680 | -5/Hub_04(d) | Discovered new exit (range 8) 24048 | -5/Hub_04(d) | Discovered new exit (range 5) 24257 | -5/Hub_04(d) | Network Hub disabled 24257 | -5/Hub_04(d) | Garrison activated, responded to threat 24260 | -5/Hub_04(d) | Network Hub disabled 24279 | -5/Hub_04(d) | Entered Factory 24279 | -4/Factory | Evolved 2 slots: Propulsion x1, Utility x1 24485 | -4/Factory | Lost 4 parts (4u) 24554 | -4/Factory | Repaired Hcp. Storage Unit 24596 | -4/Factory | Repaired Hcp. Storage Unit 24906 | -4/Factory | Lost 7 parts (1n4u2w) 24974 | -4/Factory | Discovered new exit (range 14) 24974 | -4/Factory | Spotted B-86 Titan 25060 | -4/Factory | Lost 4 parts (2u2w) 25175 | -4/Factory | Entered Upper Caves 25216 | -4/Upper Caves | Lost 5 parts (1n2u2w) 25970 | -4/Upper Caves | Learned Research security intel 26111 | -4/Upper Caves | Build established: Hauler-Mutant 26144 | -4/Upper Caves | Core integrity fell below 50% 26432 | -4/Upper Caves | Learned Research stockpile data 26458 | -4/Upper Caves | Build established: Hauler-Golem 26824 | -4/Upper Caves | Spotted B-86 Titan 26828 | -4/Upper Caves | Destroyed B-86 Titan 26909 | -4/Upper Caves | Discovered new exit (range 16) 26935 | -4/Upper Caves | Identified exit to Upper Caves 26937 | -4/Upper Caves | Entered another Upper Caves area 26938 | -4/Upper Caves | Encountered a Warlord checkpoint 27796 | -4/Upper Caves | Discovered new exit (range 12) 27820 | -4/Upper Caves | Identified exit to Zhirov 27839 | -4/Upper Caves | Found Alien Artifact 27839 | -4/Upper Caves | Identified Core Expander 27839 | -4/Upper Caves | Installed Core Expander, added new Power slot 28041 | -4/Upper Caves | Entered Zhirov 28041 | -4/Zhirov | Discovered new exit (range 3) 28075 | -4/Zhirov | Met Zhirov 28118 | -4/Zhirov | Learned location of Quarantine (-2) 28118 | -4/Zhirov | Learned location of Testing (-3) 28118 | -4/Zhirov | Learned location of Command (-1) 28142 | -4/Zhirov | Zhirov requested help retrieving the SGEMP Prototype 28149 | -4/Zhirov | Build established: Hauler-Mutant 28474 | -4/Zhirov | Build established: Generator-Golem 28533 | -4/Zhirov | Found Alien Artifact 28533 | -4/Zhirov | Identified Integrated Dissipator 28533 | -4/Zhirov | Installed Integrated Dissipator, increased core heat dissipation (+20) 28559 | -4/Zhirov | Found Alien Artifact 28627 | -4/Zhirov | Identified exit to Proximity Caves 28629 | -4/Zhirov | Entered Proximity Caves 29364 | -3/Proximity Caves | Discovered new exit (range 14) 29386 | -3/Proximity Caves | Identified exit to Research 29388 | -3/Proximity Caves | Entered Research 29388 | -3/Research | Evolved 2 slots: Utility x2 29689 | -3/Research | Repaired Centrium Heavy Treads? 30184 | -3/Research | Destroyed 11 combat bots 30330 | -3/Research | Fabricated Assault Drone Bay (x1) 30652 | -3/Research | Discovered new exit (range 10) 30679 | -3/Research | Identified exit to Testing 30812 | -3/Research | Entered Testing 30822 | -3/Testing | Found Prototype Processor 30822 | -3/Testing | Identified Exp. Melee Analysis Suite 30828 | -3/Testing | Found Exp. Melee Analysis Suite 30836 | -3/Testing | Found Exp. Melee Analysis Suite 31080 | -3/Testing | Fabricated Hcp. Storage Unit? 31280 | -3/Testing | Found Prototype Ballistic Gun 31281 | -3/Testing | Identified Hyp. Multirail 31330 | -3/Testing | System corruption reached 10% 31547 | -3/Testing | Lost 4 parts (2n1u1w) 31712 | -3/Testing | Found Prototype Hackware 31868 | -3/Testing | Build established: Generator-Mutant 32010 | -3/Testing | Lost 3 parts (2u1w) 32060 | -3/Testing | Discovered new exit (range 11) 32087 | -3/Testing | Identified exit to Research 32129 | -3/Testing | System corruption reached 30% 32189 | -3/Testing | Lost 8 parts (1p2u5w) 32461 | -3/Testing | Identified Bomb Factory No. 2 32477 | -3/Testing | Identified Molecular Deconstructor 32664 | -3/Testing | Found Prototype Launcher 32665 | -3/Testing | Identified Hellfire Missile Launcher 33082 | -3/Testing | Core integrity fell below 50% 33099 | -3/Testing | Spotted Striker 33108 | -3/Testing | Spotted Striker 33118 | -3/Testing | Destroyed Striker 33119 | -3/Testing | Spotted Alpha 7 33121 | -3/Testing | Destroyed Striker 33147 | -3/Testing | Lost 5 parts (1p1u3w) 33151 | -3/Testing | Destroyed Alpha 7 33191 | -3/Testing | Found Exp. Targeting Computer 33226 | -3/Testing | Stole the SGEMP Prototype 33389 | -3/Testing | Lost 3 parts (1p2w) 33718 | -3/Testing | Scanned by Researcher 33782 | -3/Testing | Destroyed 8 combat bots 33812 | -3/Testing | First assault squad dispatched 33926 | -3/Testing | Entered Research 33926 | -2/Research | Evolved 2 slots: Propulsion x1, Utility x1 33943 | -2/Research | Identified System Mapper 34001 | -2/Research | Identified Transdimensional Reconstructor 34112 | -2/Research | Discovered new exit (range 16) 34138 | -2/Research | Identified exit to Quarantine 34186 | -2/Research | Found Quantum Capacitor 34189 | -2/Research | Found Quantum Capacitor 34193 | -2/Research | Found Quantum Capacitor 34209 | -2/Research | Entered Quarantine 34409 | -2/Quarantine | Found Alien Artifact 34409 | -2/Quarantine | Identified Stasis Generator 34721 | -2/Quarantine | Central database locked down 34756 | -2/Quarantine | Found Prototype Device 34756 | -2/Quarantine | Identified Exp. Focal Shield 34778 | -2/Quarantine | Found Prototype Launcher 34778 | -2/Quarantine | Identified Enh. Gamma Bomb Array 34874 | -2/Quarantine | Discovered new exit (range 4) 34879 | -2/Quarantine | Identified exit to Access 35038 | -2/Quarantine | Build established: Scavenger-Gunner 35391 | -2/Quarantine | Found Alien Artifact 35391 | -2/Quarantine | Identified Matter Drive 35845 | -2/Quarantine | System corruption reached 10% 35878 | -2/Quarantine | Found Alien Artifact 35935 | -2/Quarantine | Spotted Fortress 36010 | -2/Quarantine | Lost 4 parts (2p2w) 36045 | -2/Quarantine | Destroyed Fortress 36075 | -2/Quarantine | Found Prototype Reactor 36075 | -2/Quarantine | Identified Vortex Chain Reactor 36084 | -2/Quarantine | Found Prototype Protection 36102 | -2/Quarantine | Found Prototype Device 36102 | -2/Quarantine | Identified EM Dispersion Field 36110 | -2/Quarantine | Found Prototype Device 36110 | -2/Quarantine | Identified Thermal Barrier 36122 | -2/Quarantine | Identified Centrium Heavy Armor Plating 36136 | -2/Quarantine | Found Hvy. Insulated Plating 36302 | -2/Quarantine | Discovered new exit (range 5) 36309 | -2/Quarantine | Entered Section 7 36331 | -2/Section 7 | Found Alien Artifact 36331 | -2/Section 7 | Identified Core Reset Matrix (x2) 36331 | -2/Section 7 | Used Core Reset Matrix 36335 | -2/Section 7 | Sensed 25 artifacts in vicinity 36449 | -2/Section 7 | Found Integrated Dissipator 36449 | -2/Section 7 | Installed Integrated Dissipator, increased core heat dissipation (+20) 36524 | -2/Section 7 | Spotted S7 Guard 36596 | -2/Section 7 | Destroyed S7 Guard 36657 | -2/Section 7 | Found Prototype Protection 36670 | -2/Section 7 | Found Core Regenerator 36670 | -2/Section 7 | Used Core Regenerator, restored core integrity (+240) 36829 | -2/Section 7 | Found Integrated Dissipator 36829 | -2/Section 7 | Installed Integrated Dissipator, increased core heat dissipation (+20) 36902 | -2/Section 7 | Destroyed 8 combat bots 36902 | -2/Section 7 | Spotted B-90 Cyclops 36907 | -2/Section 7 | Destroyed B-90 Cyclops 37013 | -2/Section 7 | Found Prototype Hackware 37027 | -2/Section 7 | Scanned by Researcher 37067 | -2/Section 7 | Found Integrity Redistributor 37067 | -2/Section 7 | Used Integrity Redistributor, redistributed integrity from core (-543) 37068 | -2/Section 7 | Identified Hvy. Regenerative Plating 37077 | -2/Section 7 | Spotted S7 Guard 37091 | -2/Section 7 | First assault squad dispatched 37128 | -2/Section 7 | Core integrity fell below 50% 37187 | -2/Section 7 | Destroyed 15 combat bots 37189 | -2/Section 7 | Emitted hypermatrix ping 37194 | -2/Section 7 | Assembled emerged from beneath the floor 37194 | -2/Section 7 | Allies destroyed S7 Guard 37219 | -2/Section 7 | Lost 6 parts (2u4w) 37219 | -2/Section 7 | Found Integrated Singularity Reactor 37247 | -2/Section 7 | Sensed 20 artifacts in vicinity 37280 | -2/Section 7 | Spotted S7 Guard 37294 | -2/Section 7 | Destroyed S7 Guard 37330 | -2/Section 7 | Spotted S7 Guard 37331 | -2/Section 7 | Found Integrated Heat Negator 37331 | -2/Section 7 | Installed Integrated Heat Negator, increased core heat dissipation (+40) 37344 | -2/Section 7 | Intercept squad dispatched 37346 | -2/Section 7 | Spotted Tracker 37346 | -2/Section 7 | Spotted Tracker 37349 | -2/Section 7 | Installed Integrated Singularity Reactor, increased core energy generation (+20) 37353 | -2/Section 7 | Destroyed S7 Guard 37353 | -2/Section 7 | Spotted Combat Programmer 37358 | -2/Section 7 | Spotted Combat Programmer 37373 | -2/Section 7 | Found Hvy. Regenerative Plating 37375 | -2/Section 7 | Core integrity fell below 20% 37386 | -2/Section 7 | Garrison activated, responded to threat 37393 | -2/Section 7 | Destroyed Tracker 37398 | -2/Section 7 | Warped through subspace 37398 | -2/Section 7 | Spotted Alpha 7 37403 | -2/Section 7 | Spotted Alpha 7 37426 | -2/Section 7 | Lost 12 parts (2p1n4u5w) 37456 | -2/Section 7 | Destroyed Combat Programmer 37459 | -2/Section 7 | Destroyed Combat Programmer 37598 | -2/Section 7 | System corruption reached 30% 37609 | -2/Section 7 | High security lockdown imminent 37653 | -2/Section 7 | Destroyed 10 combat bots 37666 | -2/Section 7 | Destroyed by G-73 Enforcer with Phase Gun Last Messages --------------- 37661_ C-65 Expert is analyzing... 37661_ Matter Drive destroyed. 37662_ Held in stasis. 37662_ Penetrated by Slug. 37662_ KE Penetrator destroyed. 37662_ Penetrated by Slug. 37662_ Hdn. Centrium Heavy Treads destroyed. 37662_ L-61 Swordsman destroyed. 37662_ Hvy. Machine Gun destroyed. 37663_ Held in stasis. 37663_ C-65 Expert is analyzing... 37663_ Matter Compressor destroyed. 37663_ Arm. Heavy Treads destroyed. 37663_ Held in stasis. 37664_ C-65 Expert is analyzing... 37665_ Held in stasis. 37665_ C-65 Expert is analyzing... 37665_ G-73 Enforcer misfires. 37665_ Penetrated by Slug. 37666_ Held in stasis. Map ----- +----------------------------------------------------+ | ??????????????????? ? % ???????????????????? | | ??????????????????? ? ???????????????????? | | ???????????????????" ?# [ ???????????????????? | | ????????????????????" !%[ ???????????????????? | | ???????????????????!? # ! ???????????????????? | | ?????????????????????? / % ???????????????????? | | ???????????????????????# ???????????????????? | | ??????????????????????## ###?????????????????? | | ??????????????????????#" "####??????????????? | | ?????????????##########"" = """#??????????????? | | ?????????????# #=%#= """#??????????????? | | ?????????????# !g! %! ""#??????????????? | | ???????????????""" [h m % ""#??????????????? | | ???????????????""" ||| gcgc = """#??????????????? | | ???????????????""" ||| %b=g ""#??????????????? | | ?????????????# |||??%hk% "#??????????????? | | ?????????????### ###???#!gmi###"###??????????????? | | ???????????????????????#lYg=#??##????????????????? | | ???????????????????????##%b##????????????????????? | | ???????????????????????##=c#?????????????????????? | | ????????????????????????#c|#?????????????????????? | | ???????????????????????##be##????????????????????? | | ????????????#########?##[gg[#######??????????????? | | ???????????#"""""""""# #ccg! #???????????? | | ???????????#"""" "" "# #cgcg#######??????????????? | | ??????###??# " " " #h@%*#????????????????????? | | ???#### ### #c;####???????????????????? | | ???# ## ##c### #???????????????????? | | ???# ! #c# #???????????????????? | | #####"""########+#######[### ##??????????????????? | | %%=[= =%! = [ = # #??????????????????? | | ==== %!! = # ##??????????????????? | | ==!* = % #??????????????????? | | !!!*% = %= % % #??????????????????? | | ##########+# # ####??????????????????? | | ??????????! # # #??????????????????? | | ????????= % # ### ########+##### #???? | | ??????=%= = " % =[ ^ +???? | | ????? % # "" = +???? | | ????? # % " ? | | ????# # ^ + ??? | | ????# ### ######"#############+##### #???? | | ????# #?# #??? ??????????????????????? | | ????# ??####? ????????????????????? | | ????##+######??????# """ """ #???????????????????? | | ???????????????????# " " " " #???????????????????? | | ???????????????????# """ """ #???????????????????? | | ???????????????????# #???????????????????? | | ???????????????????# #???????????????????? | | ???????????????????# #???????????????????? | +----------------------------------------------------+ Best States ------------- Heat Dissipation 239 Coolant Potential 100 Energy Generation 96 Energy Capacity 1600 Matter Stores 478 Matter Capacity 550 Sight Range 16 Robot Scan Range 30 Terrain Scan Range 24 Terrain Scan Density 110 Jamming Range 16 Power Amplification 30 Additional Mass Support 20 EM Shielding 4 Armor Coverage 2400 Resistance: KI 30 Resistance: TH 50 Resistance: EX 90 Resistance: EM 75 Resistance: I 15 Resistance: S 15 Resistance: P 15 Core Shielding 30 Weapon Shielding 100 Weapon Cycling 25 Phase Shifting 8 Evasion (%) 48 Targeting Accuracy 20 Target Analysis 6 Core Analysis 8 Armor Integrity Analysis 66 Recoil Reduction 4 Salvage Targeting 1 Offensive Hacking 34 Defensive Hacking 14 Item Schematics ----------------- None Robot Schematics ------------------ None Fabricated ------------ Hcp. Storage Unit | x1 | -7/Factory Assault Drone Bay | x1 | -3/Research Hcp. Storage Unit | x1 | -3/Testing Alien Tech Used ----------------- Core Expander Integrated Dissipator Stasis Generator Matter Drive Core Reset Matrix Core Regenerator Integrity Redistributor Integrated Heat Negator Integrated Singularity Reactor Transdimensional Reconstructor Achievements -------------- None Challenges ------------ None Game ------ Seed ResetMeleeBiocell Manual? 0 Play Time 03:38:08 Cumulative 240.9 hours Start 2021.01.09 @ 20:03:00 End 2021.01.09 @ 23:47:25 Sessions 1 Manual Loads 0 Difficulty Rogue Special Mode None Game No. 212 Rogue 205 Adventurer 0 Explorer 7 Win Type - Total 5 Types 1/0/4/0/0/0/0/0/0 Lore% 72 Gallery% 91 Achievement% 69 Wizard Run 0 Options --------- ASCII 0 Keyboard 0 Movement Numpad Keybinds 0 Fullscreen 1 Font 18/X11 Map View 76x50 Tactical HUD 1 Map Filters NONE Filters NONE Steam 1 RUN: ceff6a08-0b97-40b2-a843-0b545b15db1c